bitfinex-derivatives/quotes_SOLF0:USTF0_20251024
["timestamp","ask_amount","ask_price","bid_price","bid_amount"]
[1761324429264,5.44271961,189.97,189.91,2.78]
[1761324429569,0.78,189.95,189.91,2.78]
[1761324429764,5.44271961,189.94,189.91,2.78]
[1761324429959,4.66271961,189.93,189.91,2.78]
[1761324430166,0.78,189.94,189.91,2.78]
[1761324430363,4.66342747,189.93,189.91,2.78]
[1761324430667,4.66342747,189.92,189.91,2.78]
[1761324432674,4.66342747,189.92,189.9,185.82617008]
[1761324432876,0.78,189.94,189.9,185.82617008]
[1761324433078,0.78,189.92,189.9,188.60617008]
[1761324433279,0.78,189.95,189.91,2.78]
[1761324433579,5.44551282,189.94,189.91,2.78]
[1761324433777,4.66551282,189.93,189.91,2.78]
[1761324433977,0.78,189.94,189.91,2.78]
[1761324433978,8.4437258,189.92,189.91,2.78]
[1761324434380,0.78,189.91,189.89,3.11892533]
[1761324434677,0.78,189.94,189.89,5.89892533]
[1761324434878,0.78,189.92,189.89,5.89892533]
[1761324435078,3.77833728,189.91,189.89,5.89892533]
[1761324435278,0.78,189.92,189.89,5.89892533]
[1761324435575,3.77827448,189.91,189.89,3.11892533]
[1761324435766,0.78,189.92,189.89,5.89892533]
[1761324435966,3.77827448,189.91,189.89,5.89892533]
[1761324436168,0.78,189.92,189.89,2.78]
[1761324436371,8.37259754,189.91,189.89,2.78]
[1761324436572,3.77831123,189.9,189.89,2.78]
[1761324437180,9.15274202,189.9,189.88,3.11892533]
[1761324437482,3.77831123,189.89,189.88,5.89892533]
[1761324437985,0.78,189.91,189.89,2.78]
[1761324438178,3.77811286,189.9,189.89,2.78]
[1761324439177,0.78,189.94,189.89,2.78]
[1761324439484,8.3716436,189.93,189.89,2.78]
[1761324439673,3.77788676,189.92,189.89,2.78]
[1761324439880,4.59305966,189.96,189.92,2.78]
[1761324440080,8.37054406,189.95,189.94,5.89892533]
[1761324443292,8.36957594,189.95,189.94,5.89892533]
[1761324444493,3.77651628,189.95,189.94,5.89892533]
[1761324447782,6.6178148,190.0,189.94,5.89892533]
[1761324447989,8.36467219,189.99,189.95,2.78]
[1761324448188,8.36467219,189.98,189.95,2.78]
[1761324448385,11.52341355,190.02,189.95,2.78]
[1761324448686,8.362527,190.01,189.98,2.78]
[1761324448885,4.92153102,190.06,189.98,2.78]
[1761324449085,8.36000298,190.05,190.0,2.78]
[1761324449281,3.77319934,190.04,190.0,2.78]
[1761324449494,4.58272974,190.06,190.0,2.78]
[1761324449688,8.35279708,190.05,190.0,2.78]
[1761324449889,0.78,190.07,190.0,2.78]
[1761324450090,5.36014634,190.06,190.02,2.78]
[1761324450285,5.36014634,190.06,190.03,4.7864386]
[1761324450286,0.78,190.06,190.03,4.7864386]
[1761324450491,5.36014634,190.06,190.04,4.7864386]
[1761324450689,0.78,190.06,190.05,4.7864386]
[1761324450892,5.36014634,190.06,190.05,4.7864386]
[1761324451091,0.78,190.06,190.05,4.7864386]
[1761324451292,5.36014634,190.06,190.05,4.7864386]
[1761324451592,0.78,190.06,190.05,4.7864386]
[1761324451797,5.36014634,190.06,190.05,4.7864386]
[1761324451989,0.78,190.06,190.05,4.7864386]
[1761324452190,5.36014634,190.06,190.05,4.7864386]
[1761324452391,0.78,190.06,190.05,4.7864386]
[1761324456998,0.78,190.07,190.05,4.7864386]
[1761324457195,0.78,190.07,190.06,4.7864386]
[1761324457402,5.49612865,190.08,190.06,7.6764386]
[1761324457699,1.68598231,190.08,190.0,2.89]
[1761324457897,1.68598231,190.08,189.99,3.11892533]
[1761324457898,1.68598231,190.08,190.02,2.89]
[1761324458098,1.68598231,190.08,190.04,2.89]
[1761324458296,1.68598231,190.08,190.05,4.77363751]
[1761324458501,1.68598231,190.08,190.06,4.77363751]
[1761324458803,1.68598231,190.08,190.04,2.89]
[1761324458994,5.82188253,190.09,190.06,2.89]
[1761324459190,5.82188253,190.09,190.08,2.89]
[1761324459401,6.26588762,190.11,190.08,2.89]
[1761324460202,0.77,190.1,190.03,2.89]
[1761324460400,0.77,190.1,190.05,2.89]
[1761324460594,0.77,190.1,190.06,7.65948809]
[1761324460901,0.77,190.1,190.07,7.65948809]
[1761324461102,0.77,190.1,190.07,2.89]
[1761324461303,0.77,190.1,190.08,4.76744937]
[1761324461602,0.77,190.1,190.04,2.89]
[1761324461803,0.77,190.1,190.05,4.76776183]
[1761324462005,0.77,190.1,190.06,4.76776183]
[1761324462205,0.77,190.1,190.07,4.76776183]
[1761324462504,0.77,190.1,190.04,2.89]
[1761324462702,0.77,190.1,190.06,2.89]
[1761324462901,0.77,190.1,190.07,4.7672167]
[1761324463101,0.77,190.1,190.06,2.89]
[1761324463403,0.77,190.1,190.07,4.76779956]
[1761324463702,0.77,190.1,190.06,2.89]
[1761324463901,0.77,190.1,190.07,4.76708419]
[1761324464096,0.77,190.1,190.06,2.89]
[1761324464299,0.77,190.1,190.07,4.76708419]
[1761324464498,0.77,190.1,190.06,2.89]
[1761324464694,0.77,190.1,190.07,4.76640064]
[1761324464990,0.77,190.1,190.06,2.89]
[1761324466006,0.77,190.1,190.07,4.7658186]
[1761324466205,0.77,190.1,190.06,2.89]
[1761324467902,0.77,190.1,190.07,4.76395366]
[1761324468108,0.77,190.1,190.06,2.89]
[1761324468307,0.77,190.1,190.07,7.65263446]
[1761324468509,0.77,190.1,190.07,2.89]
[1761324471806,0.77,190.11,190.07,2.89]
[1761324477721,0.77,190.1,190.07,2.89]
[1761324479322,0.77,190.1,190.08,7.49169988]
[1761324479523,0.77,190.1,190.08,2.72]
[1761324483331,0.77,190.1,190.09,4.77849593]
[1761324484227,4.61406265,190.11,190.1,2.72]
[1761324484426,2.98430934,190.16,190.11,2.72]
[1761324484427,5.69153102,190.16,190.11,2.72]
[1761324484622,0.77,190.16,190.13,2.72]
[1761324484823,4.61536731,190.16,190.14,7.49849593]
[1761324485026,5.38536731,190.17,190.15,4.77849593]
[1761324485225,5.38536731,190.17,190.16,4.77791408]
[1761324485430,0.77,190.17,190.16,4.77791408]
[1761324486323,0.77,190.17,190.14,2.72]
[1761324486728,2.21430934,190.18,190.02,187.72968314]
[1761324486729,2.98430934,190.16,190.1,2.72]
[1761324487219,7.59735255,190.16,190.1,2.72]
[1761324487417,0.77,190.17,190.11,2.72]
[1761324487617,0.77,190.15,190.11,2.72]
[1761324488033,2.21430934,190.14,190.11,2.72]
[1761324488332,2.98430934,190.14,190.11,2.72]
[1761324488924,0.77,190.14,190.11,2.72]
[1761324489125,2.98430934,190.14,190.11,2.72]
[1761324489632,0.77,190.19,190.12,2.72]
[1761324489833,5.38371869,190.19,190.12,2.72]
[1761324490830,26.11884693,190.22,190.12,2.72]
[1761324490831,2.21430934,190.16,190.12,2.72]
[1761324491035,0.77,190.15,190.12,2.72]
[1761324491235,5.38371869,190.15,190.12,2.72]
[1761324491931,0.77,190.15,190.12,2.72]
[1761324492532,5.38518822,190.15,190.12,2.72]
[1761324492742,0.77,190.15,190.12,2.72]
[1761324493238,5.38518822,190.15,190.12,2.72]
[1761324493542,0.77,190.15,190.12,2.72]
[1761324493735,5.38518822,190.16,190.12,2.72]
[1761324493935,0.77,190.16,190.12,2.72]
[1761324494132,5.38518822,190.16,190.12,2.72]
[1761324494332,0.77,190.16,190.12,2.72]
[1761324494535,5.38518822,190.16,190.12,2.72]
[1761324494735,0.77,190.16,190.12,2.72]
[1761324494933,5.38518822,190.16,190.12,2.72]
[1761324495135,0.77,190.16,190.12,2.72]
[1761324495435,5.38518822,190.16,190.12,2.72]
[1761324495635,0.77,190.16,190.12,2.72]
[1761324495838,5.38518822,190.16,190.12,2.72]
[1761324496038,0.77,190.16,190.12,2.72]
[1761324496228,5.38518822,190.16,190.12,2.72]
[1761324496430,0.77,190.16,190.12,2.72]
[1761324496628,5.38518822,190.16,190.12,2.72]
[1761324496828,0.77,190.16,190.12,2.72]
[1761324497040,5.38518822,190.16,190.12,2.72]
[1761324497339,0.77,190.16,190.12,2.72]
[1761324497737,4.61518822,190.17,190.15,2.72]
[1761324497940,5.36313965,190.2,190.15,2.72]
[1761324498142,0.77,190.2,190.15,2.72]
[1761324498639,5.36313965,190.2,190.15,2.72]
[1761324498938,0.77,190.19,190.15,2.72]
[1761324499330,7.57744899,190.22,190.15,2.72]
[1761324499527,5.36313965,190.21,190.15,2.72]
[1761324499737,4.59313965,190.21,190.15,2.72]
[1761324499942,0.77,190.2,190.15,2.72]
[1761324500842,0.77,190.2,190.1,4.93430934]
[1761324500843,0.77,190.17,190.1,4.93430934]
[1761324501031,5.36313965,190.17,190.11,2.72]
[1761324501437,0.77,190.17,190.11,2.72]
[1761324502442,0.77,190.17,190.12,2.21430934]
[1761324502742,0.77,190.17,190.13,2.72]
[1761324503339,4.59313965,190.18,190.13,2.72]
[1761324503538,5.36313965,190.2,190.14,2.72]
[1761324503746,0.77,190.2,190.14,2.72]
[1761324503946,5.36313965,190.2,190.14,2.72]
[1761324504141,0.77,190.2,190.14,2.72]
[1761324504342,5.36313965,190.2,190.14,2.72]
[1761324504646,0.77,190.2,190.14,2.72]
[1761324504843,4.59313965,190.2,190.14,2.72]
[1761324505033,0.77,190.19,190.14,2.72]
[1761324505840,4.59313965,190.21,190.16,2.21430934]
[1761324506045,0.77,190.24,190.17,2.72]
[1761324506236,0.77,190.22,190.17,2.72]
[1761324507135,0.77,190.22,190.18,2.21430934]
[1761324507340,0.77,190.22,190.19,2.72]
[1761324507745,4.38853974,190.25,190.19,2.72]
[1761324507942,5.15853974,190.25,190.21,2.72]
[1761324508141,0.77,190.25,190.21,2.72]
[1761324512144,0.77,190.25,190.2,2.21430934]
[1761324512145,0.77,190.25,190.18,4.93430934]
[1761324512751,0.77,190.25,190.18,2.21430934]
[1761324513049,0.77,190.25,190.19,2.72]
[1761324513453,6.59188253,190.25,190.19,2.72]
[1761324513648,5.82188253,190.25,190.2,2.21430934]
[1761324513847,0.77,190.24,190.2,4.93430934]
[1761324516252,0.77,190.24,190.21,2.72]
[1761324519757,0.77,190.24,190.17,185.84886489]
[1761324519958,0.77,190.22,190.19,2.21430934]
[1761324520153,0.77,190.22,190.17,185.84886489]
[1761324520359,0.77,190.22,190.18,4.84430934]
[1761324522754,0.77,190.22,190.18,2.21430934]
[1761324522956,0.77,190.21,190.18,4.84430934]
[1761324523158,0.77,190.21,190.18,2.21430934]
[1761324523358,0.77,190.21,190.18,4.84430934]
[1761324523555,0.77,190.21,190.18,2.21430934]
[1761324523759,5.35200482,190.21,190.18,2.21430934]
[1761324524061,0.77,190.21,190.18,2.21430934]
[1761324524260,5.35200482,190.21,190.18,4.84430934]
[1761324524557,0.77,190.21,190.18,4.84430934]
[1761324524763,5.35200482,190.21,190.18,4.84430934]
[1761324525060,0.77,190.21,190.18,4.84430934]
[1761324525260,5.35200482,190.21,190.18,4.84430934]
[1761324525464,0.77,190.21,190.18,4.84430934]
[1761324525764,5.35200482,190.21,190.18,4.84430934]
[1761324526065,0.77,190.21,190.18,4.84430934]
[1761324526265,4.58200482,190.2,190.18,4.84430934]
[1761324526763,4.58200482,190.2,190.18,2.63]
[1761324528363,4.58200482,190.19,190.18,2.63]
[1761324528558,4.58200482,190.22,190.18,2.63]
[1761324528760,4.58200482,190.21,190.18,2.63]
[1761324528965,4.58200482,190.2,190.18,2.63]
[1761324529165,4.58200482,190.19,190.18,2.63]
[1761324529368,4.58200482,190.2,190.18,2.63]
[1761324529566,4.58200482,190.19,190.18,2.63]
[1761324529766,4.58200482,190.2,190.18,2.63]
[1761324530067,4.58200482,190.19,190.18,2.63]
[1761324530270,4.58200482,190.2,190.18,2.63]
[1761324530462,4.58200482,190.19,190.18,2.63]
[1761324530663,4.58200482,190.2,190.18,2.63]
[1761324530863,4.58200482,190.19,190.18,2.63]
[1761324531063,4.58200482,190.2,190.18,2.63]
[1761324531269,4.58200482,190.19,190.18,2.63]
[1761324532966,4.59102789,190.2,190.19,2.63]
[1761324533164,2.7,190.24,190.19,2.63]
[1761324535157,2.7,190.23,190.19,2.63]
[1761324535861,2.7,190.23,190.18,6.08604476]
[1761324536166,2.7,190.23,190.18,2.63]
[1761324541269,4.91138969,190.23,190.18,2.63]
[1761324541471,2.61,190.22,190.18,2.63]
[1761324545075,4.57440206,190.21,190.18,2.63]
[1761324545373,4.57440206,190.2,190.18,2.63]
[1761324545572,4.57440206,190.19,190.18,2.63]
[1761324547275,4.91138969,190.24,190.19,2.7]
[1761324547477,4.91138969,190.25,190.22,2.77]
[1761324548780,7.80138969,190.25,190.22,2.77]
[1761324548974,4.91138969,190.24,190.22,2.77]
[1761324552288,4.91138969,190.25,190.22,2.77]
[1761324553086,4.91138969,190.26,190.24,2.77]
[1761324554081,7.80138969,190.27,190.24,2.77]
[1761324554477,4.91138969,190.28,190.24,2.77]
[1761324554681,7.80138969,190.27,190.24,2.77]
[1761324555180,2.89,190.25,190.18,2.77]
[1761324555379,7.80811071,190.24,190.18,2.77]
[1761324556293,7.80811071,190.22,190.15,2.77]
[1761324557680,7.80811071,190.22,190.14,186.52145307]
[1761324557681,4.91811071,190.24,190.18,2.77]
[1761324559192,4.49958454,190.23,190.18,2.77]
[1761324559398,4.49958454,190.22,190.18,2.77]
[1761324559684,4.49958454,190.21,190.18,2.77]
[1761324559889,4.49973168,190.2,190.18,2.77]
[1761324560084,7.38973168,190.23,190.18,2.77]
[1761324560286,4.49973168,190.22,190.18,2.77]
[1761324560485,4.49973168,190.21,190.18,2.77]
[1761324560685,4.49973168,190.2,190.18,2.77]
[1761324560984,4.49973168,190.22,190.18,2.77]
[1761324561185,4.49973168,190.21,190.18,2.77]
[1761324561386,4.91811071,190.25,190.21,2.77]
[1761324561581,4.49928222,190.24,190.21,2.77]
[1761324561794,7.80811071,190.26,190.21,2.77]
[1761324564302,2.89,190.26,190.21,2.77]
[1761324570600,7.80811071,190.26,190.21,2.77]
[1761324570989,4.91811071,190.26,190.21,2.77]
[1761324571192,2.89,190.25,190.21,2.77]
[1761324571697,2.89,190.23,190.17,2.77]
[1761324573398,4.43783547,190.22,190.17,2.77]
[1761324573597,4.43783547,190.21,190.17,2.77]
[1761324573799,4.43783547,190.22,190.17,2.77]
[1761324574001,4.43783547,190.21,190.17,2.77]
[1761324574199,4.43783547,190.22,190.17,2.77]
[1761324574497,4.43783547,190.21,190.17,2.77]
[1761324574698,4.43783547,190.22,190.17,2.77]
[1761324574900,4.43783547,190.21,190.17,2.77]
[1761324575101,4.43783547,190.22,190.17,2.77]
[1761324575301,4.43783547,190.21,190.17,2.77]
[1761324576700,4.43783547,190.21,190.2,2.77]
[1761324576905,4.43783547,190.24,190.2,2.77]
[1761324577106,4.43783547,190.23,190.2,2.77]
[1761324577307,4.43783547,190.22,190.2,2.77]
[1761324577605,2.75,190.24,190.2,2.77]
[1761324577807,7.18783547,190.23,190.2,2.77]
[1761324578109,2.75,190.21,190.17,2.66]
[1761324578303,2.75,190.19,190.16,3.45604476]
[1761324578503,7.18878565,190.19,190.15,2.66]
[1761324578713,2.75,190.19,190.15,2.66]
[1761324579007,4.43878565,190.18,190.15,2.66]
[1761324579205,4.91811071,190.22,190.15,2.66]
[1761324579206,7.18878565,190.19,190.15,2.66]
[1761324579410,2.75,190.19,190.15,2.66]
[1761324579798,7.18878565,190.19,190.15,2.66]
[1761324579999,2.75,190.19,190.15,2.66]
[1761324580209,7.18878565,190.2,190.15,2.66]
[1761324580402,4.43878565,190.19,190.15,2.66]
[1761324580600,4.43878565,190.19,190.17,3.45604476]
[1761324580911,7.18878565,190.22,190.18,2.66]
[1761324581110,4.43878565,190.21,190.18,2.66]
[1761324583108,4.43878565,190.2,190.18,2.66]
[1761324583315,4.43878565,190.22,190.2,2.66]
[1761324583508,4.43878565,190.23,190.2,2.66]
[1761324583708,4.43878565,190.22,190.2,2.66]
[1761324583909,2.75,190.23,190.2,2.66]
[1761324586810,4.91811071,190.24,190.2,2.66]
[1761324587018,2.75,190.25,190.2,2.66]
[1761324588114,2.75,190.28,190.2,2.66]
[1761324588317,4.9165129,190.27,190.2,2.66]
[1761324588517,4.9165129,190.27,190.23,2.66]
[1761324588721,4.9165129,190.27,190.25,2.20993213]
[1761324590418,4.9165129,190.27,190.2,2.66]
[1761324590616,4.9165129,190.28,190.26,4.86993213]
[1761324590817,7.6665129,190.28,190.26,2.20993213]
[1761324591022,2.75,190.27,190.22,2.66]
[1761324591218,2.75,190.26,190.23,2.20993213]
[1761324597827,2.75,190.26,190.25,2.20993213]
[1761324598020,2.75,190.26,190.21,2.81]
[1761324598218,2.75,190.26,190.24,2.20993213]
[1761324598719,4.9165129,190.26,190.24,2.20993213]
[1761324598920,2.85,190.25,190.24,2.20993213]
[1761324601324,4.9165129,190.27,190.24,2.20993213]
[1761324601528,7.7665129,190.28,190.14,189.56131101]
[1761324601730,2.85,190.27,190.26,2.20993213]
[1761324602428,4.9165129,190.28,190.26,2.20993213]
[1761324602631,7.7665129,190.28,190.26,2.20993213]
[1761324603123,2.85,190.28,190.26,2.20993213]
[1761324603519,4.9165129,190.29,190.26,2.20993213]
[1761324603724,7.7665129,190.29,190.26,2.20993213]
[1761324603930,2.85,190.27,190.25,2.20993213]
[1761324606830,7.7665129,190.29,190.26,2.81]
[1761324607033,7.7665129,190.29,190.18,4.7317]
[1761324607034,4.9165129,190.31,190.28,2.81]
[1761324607225,4.9165129,190.32,190.3,5.01993213]
[1761324607527,2.69,190.32,190.3,2.20993213]
[1761324607930,7.6065129,190.32,190.3,2.20993213]
[1761324608429,2.69,190.32,190.3,2.20993213]
[1761324609624,2.69,190.32,190.27,4.99993213]
[1761324610226,2.69,190.32,190.27,2.79]
[1761324610427,2.69,190.32,190.24,2.79]
[1761324610428,4.89993213,190.31,190.24,2.79]
[1761324610634,2.69,190.3,190.24,2.79]
[1761324611526,4.89993213,190.29,190.19,2.79]
[1761324611727,2.69,190.28,190.21,4.99993213]
[1761324611925,2.69,190.28,190.22,2.79]
[1761324612136,4.9165129,190.3,190.24,2.79]
[1761324612331,7.6065129,190.31,190.24,2.79]
[1761324612928,2.20993213,190.3,190.24,2.79]
[1761324613829,4.89993213,190.3,190.24,2.79]
[1761324615129,9.28320942,190.3,190.24,2.79]
[1761324615330,7.07327729,190.29,190.24,2.79]
[1761324615530,2.69,190.29,190.24,2.79]
[1761324616434,2.69,190.28,190.24,2.79]
[1761324617138,4.89993213,190.27,190.21,2.79]
[1761324617738,2.69,190.26,190.21,2.79]
[1761324617933,2.20993213,190.27,190.21,2.79]
[1761324618140,2.69,190.25,190.21,2.79]
[1761324618446,4.89993213,190.25,190.18,2.79]
[1761324618627,9.28320942,190.25,190.18,2.79]
[1761324618826,4.38327729,190.24,190.18,2.79]
[1761324619238,4.89993213,190.25,190.18,2.79]
[1761324619735,9.28320942,190.25,190.18,2.79]
[1761324619936,4.38327729,190.24,190.18,2.79]
[1761324620136,4.89993213,190.25,190.18,2.79]
[1761324620332,2.69,190.25,190.18,2.79]
[1761324620541,4.89993213,190.25,190.18,2.79]
[1761324620934,2.69,190.25,190.18,2.20993213]
[1761324621134,2.69,190.25,190.19,2.79]
[1761324623238,7.07327729,190.25,190.19,2.79]
[1761324625443,2.69,190.24,190.16,2.79]
[1761324625644,2.69,190.22,190.16,4.99993213]
[1761324625832,7.07327729,190.22,190.16,4.99993213]
[1761324626136,2.69,190.22,190.16,4.99993213]
[1761324626533,7.07327729,190.22,190.16,4.99993213]
[1761324626737,2.69,190.22,190.16,4.99993213]
[1761324629944,2.69,190.22,190.16,2.79]
[1761324630137,2.69,190.22,190.17,4.99993213]
[1761324630649,2.69,190.22,190.18,2.79]
[1761324632642,2.69,190.22,190.18,2.79]
[1761324644062,2.69,190.22,190.17,2.20993213]
[1761324644366,2.69,190.22,190.17,4.94993213]
[1761324645871,2.69,190.22,190.18,2.74]
[1761324646672,2.69,190.22,190.19,4.94993213]
[1761324647662,2.69,190.22,190.16,2.74]
[1761324647863,2.69,190.22,190.18,4.94993213]
[1761324648868,2.69,190.22,190.19,4.94993213]
[1761324650670,2.69,190.22,190.19,2.74]
[1761324651367,2.69,190.22,190.18,2.74]
[1761324662981,3.60515128,190.22,190.18,2.74]
[1761324664381,2.66,190.21,190.18,2.74]
[1761324666883,0.91515128,190.22,190.18,2.74]
[1761324667082,0.91515128,190.22,190.2,2.62]
[1761324667285,2.66,190.24,190.2,2.62]
[1761324667478,0.91503096,190.25,190.2,2.62]
[1761324667678,3.70503096,190.25,190.2,2.62]
[1761324669086,7.70762977,190.28,190.24,2.75]
[1761324669381,2.79,190.28,190.24,2.75]
[1761324669690,2.79,190.27,190.21,2.75]
[1761324676083,2.79,190.27,190.2,3.45501401]
[1761324676287,2.79,190.27,53.029,97.84894442]
[1761324676288,2.79,190.27,190.19,2.75]
[1761324676583,2.79,190.26,190.19,2.75]
[1761324676780,2.79,190.24,190.19,2.75]
[1761324678386,2.79,190.24,190.16,2.75]
[1761324684096,2.79,190.24,190.17,2.75]
[1761324691005,2.79,190.22,190.15,2.75]
[1761324692910,2.79,190.22,190.13,7.603576]
[1761324693205,2.79,190.22,190.13,2.75]
[1761324694299,2.79,190.22,190.12,4.853576]
[1761324694504,2.79,190.21,190.11,2.75]
[1761324702411,2.79,190.21,190.12,2.64]
[1761324710816,2.79,190.21,190.14,4.85230275]
[1761324712713,2.88,190.2,190.14,4.85230275]
[1761324714012,2.88,190.19,190.14,4.85230275]
[1761324714719,2.88,190.19,190.15,2.64]
[1761324715015,2.88,190.19,190.14,4.85230275]
[1761324716617,2.88,190.19,190.15,2.64]
[1761324717821,2.88,190.19,190.12,2.9]
[1761324732129,2.88,190.19,190.12,7.75440739]
[1761324732533,2.88,190.19,190.12,4.85440739]
[1761324732730,2.88,190.19,190.13,2.76]
[1761324735633,2.65,190.21,190.13,2.76]
[1761324735823,63.64,190.2,190.14,2.76]
[1761324738134,63.64,190.2,190.15,2.76]
[1761324738333,2.65,190.19,190.15,2.76]
[1761324738836,63.64,190.2,190.15,4.97230275]
[1761324739135,63.64,190.2,190.16,2.76]
[1761324741234,63.64,190.2,190.17,2.21230275]
[1761324741434,63.64,190.2,190.18,2.76]
[1761324741637,2.65,190.22,190.18,2.76]
[1761324741831,2.65,190.21,190.18,2.76]
[1761324742444,63.64,190.22,190.18,2.76]
[1761324743340,2.65,190.24,190.18,2.76]
[1761324743540,66.29,190.23,190.18,2.76]
[1761324744139,2.65,190.22,190.18,2.76]
[1761324744539,2.65,190.22,190.15,4.85440739]
[1761324744736,2.65,190.22,190.15,2.76]
[1761324745132,2.65,190.22,190.16,2.21230275]
[1761324745337,2.65,190.22,190.16,4.97230275]
[1761324747241,2.65,190.22,190.16,2.21230275]
[1761324747453,2.65,190.22,190.17,2.76]
[1761324750845,2.65,190.21,190.17,2.76]
[1761324757972,2.65,190.21,190.14,4.85440739]
[1761324758268,2.76,190.19,190.14,2.69]
[1761324760069,2.76,190.19,190.14,2.21230275]
[1761324760270,2.76,190.19,190.15,2.69]
[1761324761872,4.97230275,190.22,190.15,2.69]
[1761324762072,2.76,190.22,190.15,2.69]
[1761324762972,66.4,190.22,190.15,2.69]
[1761324763173,2.76,190.21,190.15,2.69]
[1761324766373,63.64,190.22,190.17,2.69]
[1761324766974,66.4,190.22,190.17,2.69]
[1761324768173,2.76,190.22,190.17,2.69]
[1761324769377,66.4,190.24,190.17,2.69]
[1761324769982,2.76,190.23,190.19,2.69]
[1761324770175,66.4,190.24,190.19,2.69]
[1761324771073,63.64,190.24,190.19,2.69]
[1761324772974,2.76,190.27,190.19,2.69]
[1761324793997,4.38588438,190.27,190.19,2.69]
[1761324794198,2.79,190.26,190.19,2.69]
[1761324800492,7.17591839,190.26,190.19,2.69]
[1761324800693,2.79,190.25,190.19,2.69]
[1761324813398,2.79,190.25,190.19,7.54344338]
[1761324815414,2.79,190.25,190.2,2.83]
[1761324841925,2.86,190.21,190.17,6.47125784]
[1761324842133,2.86,190.19,190.17,6.26115747]
[1761324842327,2.86,190.19,190.14,11.91780466]
[1761324842528,62.98,190.21,190.18,2.2109179]
[1761324842733,2.86,190.2,190.18,4.9309179]
[1761324843233,2.86,190.2,190.18,2.2109179]
[1761324848543,2.86,190.2,190.18,4.9209179]
[1761324850446,2.86,190.2,190.18,2.2109179]
[1761324852241,2.86,190.2,190.18,4.9209179]
[1761324857351,2.86,190.2,190.18,2.71]
[1761324863953,2.86,190.2,190.16,2.2109179]
[1761324864149,2.86,190.2,190.17,2.71]
[1761324872758,0.91519941,190.21,190.17,2.71]
[1761324872957,0.91519941,190.21,190.14,4.7327]
[1761324872958,0.91519941,190.21,190.19,2.71]
[1761324873163,3.68519941,190.21,190.19,2.71]
[1761324873364,2.77,190.2,190.18,4.9209179]
[1761324875157,37.33519941,190.21,190.19,2.71]
[1761324875365,36.42,190.21,190.19,2.71]
[1761324875759,36.42,190.21,190.2,4.9209179]
[1761324876165,2.77,190.2,190.18,4.9209179]
[1761324877054,36.42,190.21,190.19,2.71]
[1761324877260,2.77,190.23,190.19,2.71]
[1761324883370,64.49510315,190.24,190.21,2.88]
[1761324883874,0.91510315,190.24,190.23,2.88]
[1761324884070,7.7418185,190.26,190.23,2.88]
[1761324884071,4.9118185,190.26,190.23,2.88]
[1761324884273,2.83,190.27,190.24,2.88]
[1761324885365,2.83,190.27,190.23,2.2109179]
[1761324885568,2.83,190.27,190.21,5.0909179]
[1761324886470,2.83,190.27,190.21,2.2109179]
[1761324886975,2.83,190.27,190.21,5.0909179]
[1761324891477,2.83,190.27,190.22,2.88]